[Event "Early-Titled-Tuesday-Blitz-February-20-2024"]
[Site "Chess.com"]
[Date "2024.02.20"]
[Round "2"]
[White "AnaKuchava"]
[Black "Chessdreamer2001"]
[Result "0-1"]
[WhiteElo "2204"]
[BlackElo "2487"]
[TimeControl "180+1"]
[EndTime "8:17:13 PST"]
[Termination "Chessdreamer2001 won by resignation"]

1. d4 {[%clk 0:03:00.9]} 1... Nf6 {[%clk 0:02:56]} 2. Nf3 {[%clk 0:03:00.5]}
2... g6 {[%clk 0:02:55.3]} 3. c4 {[%clk 0:02:56.1]} 3... Bg7 {[%clk 0:02:54.4]}
4. Nc3 {[%clk 0:02:56]} 4... d6 {[%clk 0:02:54.9]} 5. e4 {[%clk 0:02:56.4]} 5...
O-O {[%clk 0:02:54.8]} 6. Be2 {[%clk 0:02:56.9]} 6... Nbd7 {[%clk 0:02:53.4]} 7.
Kf1 {[%clk 0:02:56.4]} 7... e5 {[%clk 0:02:52.5]} 8. d5 {[%clk 0:02:42.4]} 8...
Qe7 {[%clk 0:02:46.2]} 9. h4 {[%clk 0:02:35.7]} 9... Nc5 {[%clk 0:02:45.4]} 10.
Qc2 {[%clk 0:02:31.6]} 10... a5 {[%clk 0:02:45.8]} 11. h5 {[%clk 0:01:58.5]}
11... Nxh5 {[%clk 0:02:44.3]} 12. Ng5 {[%clk 0:01:57.8]} 12... Nf4 {[%clk
0:02:36.4]} 13. Nxh7 {[%clk 0:01:49]} 13... Re8 {[%clk 0:02:36.6]} 14. g3 {[%clk
0:01:12.9]} 14... Nxe2 {[%clk 0:02:13.4]} 15. Qxe2 {[%clk 0:01:08.8]} 15... f6
{[%clk 0:02:12.7]} 16. f3 {[%clk 0:00:54.2]} 16... Kf7 {[%clk 0:02:04.1]} 17.
Bh6 {[%clk 0:00:41.2]} 17... Rh8 {[%clk 0:01:58.4]} 18. Bxg7 {[%clk 0:00:32.1]}
18... Kxg7 {[%clk 0:01:59.3]} 19. Qh2 {[%clk 0:00:32.3]} 19... Bd7 {[%clk
0:01:47.3]} 20. Qh6+ {[%clk 0:00:31.2]} 20... Kf7 {[%clk 0:01:47.8]} 21. Kg2
{[%clk 0:00:19.5]} 21... Rag8 {[%clk 0:01:43.4]} 22. Rh2 {[%clk 0:00:18.3]}
22... Ke8 {[%clk 0:01:36.7]} 23. Rah1 {[%clk 0:00:17.5]} 23... Kd8 {[%clk
0:01:36.7]} 24. Qe3 {[%clk 0:00:16.2]} 24... Kc8 {[%clk 0:01:33.2]} 25. f4
{[%clk 0:00:13.4]} 25... exf4 {[%clk 0:01:28.9]} 26. gxf4 {[%clk 0:00:14.3]}
26... Rg7 {[%clk 0:01:24.6]} 27. e5 {[%clk 0:00:07.8]} 27... Rgxh7 {[%clk
0:01:20]} 28. Rxh7 {[%clk 0:00:05]} 28... Rxh7 {[%clk 0:01:19.6]} 29. Rxh7
{[%clk 0:00:05.9]} 29... Qxh7 {[%clk 0:01:19.6]} 30. exf6 {[%clk 0:00:06.8]}
30... Qf7 {[%clk 0:01:15.1]} 31. Qe7 {[%clk 0:00:06.2]} 31... Qxe7 {[%clk
0:01:12.2]} 32. fxe7 {[%clk 0:00:06.1]} 32... Be8 {[%clk 0:01:13.1]} 33. Ne2
{[%clk 0:00:02.8]} 33... Kd7 {[%clk 0:01:09]} 34. Nd4 {[%clk 0:00:03.4]} 34...
Kxe7 {[%clk 0:01:08.2]} 35. a3 {[%clk 0:00:03.4]} 35... Kf6 {[%clk 0:01:08.6]}
36. b4 {[%clk 0:00:03.5]} 36... axb4 {[%clk 0:01:09.5]} 37. axb4 {[%clk
0:00:04.4]} 37... Nd3 {[%clk 0:01:10.3]} 38. b5 {[%clk 0:00:04.4]} 38... Nxf4+
{[%clk 0:01:09.4]} 39. Kf3 {[%clk 0:00:05.3]} 39... g5 {[%clk 0:01:07.3]} 40. b6
{[%clk 0:00:03.8]} 40... Bh5+ {[%clk 0:01:07.5]} 41. Ke4 {[%clk 0:00:03.3]}
41... Bg6+ {[%clk 0:01:05.3]} 42. Kf3 {[%clk 0:00:03]} 42... cxb6 {[%clk
0:01:05.3]} 43. Nb5 {[%clk 0:00:03.2]} 43... Ke5 {[%clk 0:01:05.5]} 0-1

[Event "Early-Titled-Tuesday-Blitz-February-20-2024"]
[Site "Chess.com"]
[Date "2024.02.20"]
[Round "2"]
[White "ExchangeAB"]
[Black "mary-sanna"]
[Result "0-1"]
[WhiteElo "2435"]
[BlackElo "2154"]
[TimeControl "180+1"]
[EndTime "8:17:13 PST"]
[Termination "mary-sanna won by resignation"]

1. d4 {[%clk 0:03:00.9]} 1... d5 {[%clk 0:02:59.1]} 2. Nf3 {[%clk 0:03:01.3]}
2... Nf6 {[%clk 0:02:59]} 3. c3 {[%clk 0:03:01.5]} 3... c5 {[%clk 0:02:58.3]} 4.
e3 {[%clk 0:03:01.1]} 4... Bg4 {[%clk 0:02:55.2]} 5. dxc5 {[%clk 0:03:00.3]}
5... e6 {[%clk 0:02:49]} 6. b4 {[%clk 0:02:58.6]} 6... a5 {[%clk 0:02:48.2]} 7.
Qb3 {[%clk 0:02:56.9]} 7... b6 {[%clk 0:02:42.9]} 8. Bb5+ {[%clk 0:02:56.1]}
8... Ke7 {[%clk 0:02:33.1]} 9. c6 {[%clk 0:02:46.1]} 9... Bxf3 {[%clk
0:02:28.3]} 10. gxf3 {[%clk 0:02:44.9]} 10... Qc7 {[%clk 0:02:27.7]} 11. bxa5
{[%clk 0:02:33.6]} 11... Rxa5 {[%clk 0:02:24.3]} 12. Ba3+ {[%clk 0:02:33.3]}
12... Ke8 {[%clk 0:02:22]} 13. Bxf8 {[%clk 0:02:32.6]} 13... Kxf8 {[%clk
0:02:20.1]} 14. Qb4+ {[%clk 0:02:24.9]} 14... Kg8 {[%clk 0:02:20]} 15. a4 {[%clk
0:02:11.1]} 15... Nxc6 {[%clk 0:02:19.7]} 16. Bxc6 {[%clk 0:02:01.6]} 16... Qxc6
{[%clk 0:02:20.6]} 17. Nd2 {[%clk 0:02:01.1]} 17... h6 {[%clk 0:02:13.9]} 18.
Rg1 {[%clk 0:01:55.5]} 18... Kh7 {[%clk 0:02:13.7]} 19. c4 {[%clk 0:01:16.5]}
19... Rha8 {[%clk 0:02:06.5]} 20. cxd5 {[%clk 0:01:13.3]} 20... Nxd5 {[%clk
0:02:06.2]} 21. Qb1+ {[%clk 0:01:10.8]} 21... g6 {[%clk 0:02:05.4]} 22. h4
{[%clk 0:00:51.3]} 22... Nc3 {[%clk 0:01:40.8]} 23. Qd3 {[%clk 0:00:43.4]} 23...
Rxa4 {[%clk 0:01:33.4]} 24. Rc1 {[%clk 0:00:43.5]} 24... Ra1 {[%clk 0:01:26.3]}
25. Qc2 {[%clk 0:00:43.5]} 25... Rxc1+ {[%clk 0:01:20.3]} 26. Qxc1 {[%clk
0:00:44.4]} 26... Rc8 {[%clk 0:01:18.1]} 27. Rg4 {[%clk 0:00:41.6]} 27... Qb5
{[%clk 0:01:12.7]} 28. Nc4 {[%clk 0:00:22.7]} 28... Rxc4 {[%clk 0:01:11.1]} 29.
Rxc4 {[%clk 0:00:22.8]} 29... Qxc4 {[%clk 0:01:10.4]} 30. Kd2 {[%clk 0:00:22]}
30... Qe2+ {[%clk 0:00:52.7]} 31. Kxc3 {[%clk 0:00:22]} 31... Qxf3 {[%clk
0:00:50.8]} 32. Qd2 {[%clk 0:00:18.7]} 32... Qc6+ {[%clk 0:00:48.4]} 33. Kb3
{[%clk 0:00:18.3]} 33... Qd5+ {[%clk 0:00:47]} 34. Qxd5 {[%clk 0:00:16.1]} 34...
exd5 {[%clk 0:00:47.9]} 35. Kb4 {[%clk 0:00:16.1]} 35... Kg7 {[%clk 0:00:47.7]}
36. Kb5 {[%clk 0:00:16.7]} 36... Kf6 {[%clk 0:00:47.9]} 37. Kxb6 {[%clk
0:00:17.4]} 37... Ke5 {[%clk 0:00:48.3]} 38. Kc5 {[%clk 0:00:17.7]} 38... f6
{[%clk 0:00:46]} 39. Kc6 {[%clk 0:00:17.8]} 39... h5 {[%clk 0:00:45.5]} 40. Kc5
{[%clk 0:00:17.7]} 40... g5 {[%clk 0:00:45.8]} 41. f4+ {[%clk 0:00:15.4]} 41...
gxf4 {[%clk 0:00:44.5]} 42. exf4+ {[%clk 0:00:15.7]} 42... Kxf4 {[%clk
0:00:44.9]} 43. Kxd5 {[%clk 0:00:16.6]} 43... Kg4 {[%clk 0:00:44.7]} 44. Ke6
{[%clk 0:00:17]} 44... f5 {[%clk 0:00:45]} 45. Kf6 {[%clk 0:00:17.9]} 45... f4
{[%clk 0:00:45.3]} 46. Ke5 {[%clk 0:00:18.8]} 46... f3 {[%clk 0:00:45.8]} 0-1

[Event "Early-Titled-Tuesday-Blitz-February-20-2024"]
[Site "Chess.com"]
[Date "2024.02.20"]
[Round "2"]
[White "David_George21"]
[Black "ProChessWICTH"]
[Result "1-0"]
[WhiteElo "2316"]
[BlackElo "2514"]
[TimeControl "180+1"]
[EndTime "8:17:15 PST"]
[Termination "David_George21 won by resignation"]

1. e4 {[%clk 0:03:00.9]} 1... c6 {[%clk 0:02:59]} 2. d4 {[%clk 0:02:59.9]} 2...
d5 {[%clk 0:02:59.9]} 3. Nc3 {[%clk 0:02:58.4]} 3... dxe4 {[%clk 0:02:59.3]} 4.
Nxe4 {[%clk 0:02:59.3]} 4... Nf6 {[%clk 0:02:59.3]} 5. Ng3 {[%clk 0:03:00.2]}
5... g6 {[%clk 0:02:50.1]} 6. Nf3 {[%clk 0:02:57.7]} 6... Bg7 {[%clk 0:02:49.8]}
7. Bd3 {[%clk 0:02:58.1]} 7... O-O {[%clk 0:02:50.2]} 8. h4 {[%clk 0:02:57.9]}
8... h5 {[%clk 0:02:45.4]} 9. c3 {[%clk 0:02:52.8]} 9... Nbd7 {[%clk 0:02:44.1]}
10. Bg5 {[%clk 0:02:45.1]} 10... c5 {[%clk 0:02:34.5]} 11. Qe2 {[%clk 0:02:35]}
11... cxd4 {[%clk 0:02:32.7]} 12. Nxd4 {[%clk 0:02:35.9]} 12... Nc5 {[%clk
0:02:32.1]} 13. Bc2 {[%clk 0:02:35.7]} 13... Bg4 {[%clk 0:01:56.6]} 14. f3
{[%clk 0:02:33.1]} 14... Qc7 {[%clk 0:01:44]} 15. Kf2 {[%clk 0:02:18.5]} 15...
e5 {[%clk 0:01:25.2]} 16. Nb5 {[%clk 0:02:16.9]} 16... Qb6 {[%clk 0:01:23.4]}
17. Be3 {[%clk 0:02:16.3]} 17... Bd7 {[%clk 0:01:16.8]} 18. a4 {[%clk
0:02:04.3]} 18... a6 {[%clk 0:00:43.8]} 19. b4 {[%clk 0:01:59.7]} 19... axb5
{[%clk 0:00:42.3]} 20. Bxc5 {[%clk 0:01:57.9]} 20... Qc7 {[%clk 0:00:42.7]} 21.
a5 {[%clk 0:01:47]} 21... Rfe8 {[%clk 0:00:35.2]} 22. Ne4 {[%clk 0:01:38.8]}
22... Nxe4+ {[%clk 0:00:20.4]} 23. Bxe4 {[%clk 0:01:39.7]} 23... f5 {[%clk
0:00:16.1]} 24. Bd5+ {[%clk 0:01:39.6]} 24... Be6 {[%clk 0:00:16.4]} 25. Bxe6+
{[%clk 0:01:39.5]} 25... Rxe6 {[%clk 0:00:17.3]} 26. Qxb5 {[%clk 0:01:38.9]}
26... e4 {[%clk 0:00:15.8]} 27. Qc4 {[%clk 0:01:38]} 27... Re8 {[%clk
0:00:15.8]} 28. Rhe1 {[%clk 0:01:36.9]} 28... Kh7 {[%clk 0:00:15.3]} 29. Rad1
{[%clk 0:01:27.5]} 29... Qh2 {[%clk 0:00:12.1]} 30. Rh1 {[%clk 0:01:26]} 30...
Qf4 {[%clk 0:00:07.9]} 31. Be3 {[%clk 0:01:23.6]} 31... Qe5 {[%clk 0:00:07.5]}
32. Bd4 {[%clk 0:01:14.9]} 32... Qb8 {[%clk 0:00:03.3]} 33. Rde1 {[%clk
0:01:11.8]} 33... Bxd4+ {[%clk 0:00:02.7]} 34. Qxd4 {[%clk 0:01:12.1]} 34...
exf3 {[%clk 0:00:02.8]} 35. Rxe6 {[%clk 0:01:08.1]} 35... Rxe6 {[%clk
0:00:03.7]} 36. Qd7+ {[%clk 0:01:08.1]} 36... Kh6 {[%clk 0:00:02.7]} 37. Qxe6
{[%clk 0:01:08]} 37... fxg2 {[%clk 0:00:03.1]} 38. Kxg2 {[%clk 0:01:04.8]} 38...
Qf4 {[%clk 0:00:03.6]} 39. Qe2 {[%clk 0:00:56]} 39... Qc7 {[%clk 0:00:02.7]} 40.
Qe3+ {[%clk 0:00:53.9]} 40... f4 {[%clk 0:00:03.3]} 41. Qf3 {[%clk 0:00:54.3]}
41... Qe5 {[%clk 0:00:02.9]} 42. Rf1 {[%clk 0:00:54.2]} 42... Qf6 {[%clk
0:00:02.2]} 43. Qxf4+ {[%clk 0:00:54.2]} 43... Qxf4 {[%clk 0:00:02.4]} 44. Rxf4
{[%clk 0:00:55.1]} 1-0

[Event "Early-Titled-Tuesday-Blitz-February-20-2024"]
[Site "Chess.com"]
[Date "2024.02.20"]
[Round "2"]
[White "bilosuvenosu06"]
[Black "WiktoriaPOL"]
[Result "0-1"]
[WhiteElo "2507"]
[BlackElo "2289"]
[TimeControl "180+1"]
[EndTime "8:17:17 PST"]
[Termination "WiktoriaPOL won by checkmate"]

1. d4 {[%clk 0:02:59.2]} 1... Nf6 {[%clk 0:02:58.7]} 2. c4 {[%clk 0:02:58.8]}
2... g6 {[%clk 0:02:57.8]} 3. Nc3 {[%clk 0:02:58.8]} 3... Bg7 {[%clk 0:02:56.8]}
4. e4 {[%clk 0:02:58.5]} 4... d6 {[%clk 0:02:55]} 5. Nf3 {[%clk 0:02:58.3]} 5...
O-O {[%clk 0:02:54.9]} 6. Be2 {[%clk 0:02:58.3]} 6... e5 {[%clk 0:02:54.7]} 7.
O-O {[%clk 0:02:57.9]} 7... Nc6 {[%clk 0:02:54.3]} 8. dxe5 {[%clk 0:02:50.3]}
8... dxe5 {[%clk 0:02:00.5]} 9. h3 {[%clk 0:02:49.8]} 9... Re8 {[%clk
0:01:53.9]} 10. Be3 {[%clk 0:02:49.1]} 10... Be6 {[%clk 0:01:50.4]} 11. b3
{[%clk 0:02:47.9]} 11... Qe7 {[%clk 0:01:50.3]} 12. Qd2 {[%clk 0:02:46.7]} 12...
Rad8 {[%clk 0:01:49.9]} 13. Qb2 {[%clk 0:02:45.3]} 13... Nd4 {[%clk 0:01:46.7]}
14. Nd5 {[%clk 0:02:45.1]} 14... Bxd5 {[%clk 0:01:43.9]} 15. exd5 {[%clk
0:02:42.3]} 15... Nd7 {[%clk 0:01:35.7]} 16. Bxd4 {[%clk 0:02:34.7]} 16... exd4
{[%clk 0:01:34.7]} 17. Bd3 {[%clk 0:02:35.1]} 17... Nc5 {[%clk 0:00:45.4]} 18.
Rad1 {[%clk 0:02:31.9]} 18... Qf6 {[%clk 0:00:44.7]} 19. Qc2 {[%clk 0:02:27.3]}
19... c6 {[%clk 0:00:42.6]} 20. dxc6 {[%clk 0:02:26.4]} 20... bxc6 {[%clk
0:00:43.5]} 21. b4 {[%clk 0:02:23.5]} 21... Ne6 {[%clk 0:00:43.7]} 22. Nd2
{[%clk 0:02:11.3]} 22... Nf4 {[%clk 0:00:42.3]} 23. Ne4 {[%clk 0:02:10]} 23...
Qh4 {[%clk 0:00:40.2]} 24. Ng3 {[%clk 0:02:03.8]} 24... f5 {[%clk 0:00:36.7]}
25. Rfe1 {[%clk 0:02:02.2]} 25... Be5 {[%clk 0:00:36]} 26. c5 {[%clk 0:01:53.1]}
26... Qg5 {[%clk 0:00:35.1]} 27. b5 {[%clk 0:01:44.6]} 27... cxb5 {[%clk
0:00:33.9]} 28. Bxb5 {[%clk 0:01:42.4]} 28... Re7 {[%clk 0:00:34.2]} 29. Bc4+
{[%clk 0:01:42.2]} 29... Kg7 {[%clk 0:00:33.8]} 30. Qb3 {[%clk 0:01:30.8]} 30...
Rde8 {[%clk 0:00:23.4]} 31. c6 {[%clk 0:01:27.6]} 31... h5 {[%clk 0:00:23]} 32.
Qf3 {[%clk 0:01:17.2]} 32... h4 {[%clk 0:00:22.6]} 33. Ne2 {[%clk 0:01:16.5]}
33... Nxe2+ {[%clk 0:00:20.4]} 34. Rxe2 {[%clk 0:01:17.4]} 34... Qf6 {[%clk
0:00:16]} 35. Rde1 {[%clk 0:01:16]} 35... Bc7 {[%clk 0:00:15.7]} 36. Rxe7+
{[%clk 0:01:14.1]} 36... Rxe7 {[%clk 0:00:16.6]} 37. Rb1 {[%clk 0:01:11.2]}
37... Qd6 {[%clk 0:00:15.5]} 38. g3 {[%clk 0:01:04.1]} 38... hxg3 {[%clk
0:00:15.4]} 39. fxg3 {[%clk 0:01:04.6]} 39... Re3 {[%clk 0:00:14.7]} 40. Qd5
{[%clk 0:00:57.4]} 40... Qxg3+ {[%clk 0:00:13.7]} 41. Kf1 {[%clk 0:00:57.3]}
41... Rf3+ {[%clk 0:00:13.5]} 42. Ke2 {[%clk 0:00:57.1]} 42... Rf2+ {[%clk
0:00:12.5]} 43. Kd1 {[%clk 0:00:56.3]} 43... Qg1+ {[%clk 0:00:12.1]} 44. Bf1
{[%clk 0:00:57.1]} 44... Qxf1# {[%clk 0:00:12.4]} 0-1

[Event "Early-Titled-Tuesday-Blitz-February-20-2024"]
[Site "Chess.com"]
[Date "2024.02.20"]
[Round "2"]
[White "GMT4114"]
[Black "BallottiLuca"]
[Result "0-1"]
[WhiteElo "2025"]
[BlackElo "2433"]
[TimeControl "180+1"]
[EndTime "8:17:22 PST"]
[Termination "BallottiLuca won by checkmate"]

1. e4 {[%clk 0:03:00.9]} 1... c5 {[%clk 0:02:59.2]} 2. Nc3 {[%clk 0:03:01]} 2...
e6 {[%clk 0:02:57.5]} 3. Nge2 {[%clk 0:03:00.7]} 3... Nc6 {[%clk 0:02:53.1]} 4.
g3 {[%clk 0:03:00.8]} 4... d5 {[%clk 0:02:51]} 5. exd5 {[%clk 0:03:00.3]} 5...
exd5 {[%clk 0:02:51.9]} 6. d4 {[%clk 0:03:00.8]} 6... Bg4 {[%clk 0:02:48.2]} 7.
Bg2 {[%clk 0:02:28.4]} 7... Nxd4 {[%clk 0:02:38]} 8. h3 {[%clk 0:02:22.4]} 8...
Bf3 {[%clk 0:02:37.5]} 9. Kf1 {[%clk 0:02:17.9]} 9... Qf6 {[%clk 0:02:27]} 10.
Qd3 {[%clk 0:02:13.7]} 10... Bxg2+ {[%clk 0:02:02]} 11. Kxg2 {[%clk 0:02:14.6]}
11... Nxe2 {[%clk 0:02:00.3]} 12. Qxe2+ {[%clk 0:02:09.6]} 12... Ne7 {[%clk
0:02:00.5]} 13. Nxd5 {[%clk 0:02:06.8]} 13... Qc6 {[%clk 0:01:50.5]} 14. c4
{[%clk 0:02:02]} 14... O-O-O {[%clk 0:01:42.2]} 15. Rd1 {[%clk 0:01:50.5]} 15...
Nxd5 {[%clk 0:01:26.3]} 16. cxd5 {[%clk 0:01:50.7]} 16... Rxd5 {[%clk
0:01:11.3]} 17. Rxd5 {[%clk 0:01:50.3]} 17... Qxd5+ {[%clk 0:01:11.6]} 18. Kg1
{[%clk 0:01:47.5]} 18... Bd6 {[%clk 0:01:09]} 19. Be3 {[%clk 0:01:46.7]} 19...
Re8 {[%clk 0:01:04.4]} 20. Qg4+ {[%clk 0:01:43.5]} 20... f5 {[%clk 0:00:55.1]}
21. Qh5 {[%clk 0:01:25.5]} 21... g6 {[%clk 0:00:51.8]} 22. Rd1 {[%clk
0:01:09.8]} 22... Qe6 {[%clk 0:00:38.3]} 23. Qxh7 {[%clk 0:00:58.5]} 23... Bxg3
{[%clk 0:00:37.4]} 24. Bxc5 {[%clk 0:00:49.3]} 24... Bc7 {[%clk 0:00:35.3]} 25.
Be3 {[%clk 0:00:43.3]} 25... f4 {[%clk 0:00:27.5]} 26. Rc1 {[%clk 0:00:38.3]}
26... Qe5 {[%clk 0:00:13.7]} 27. Bxa7 {[%clk 0:00:32.1]} 27... f3 {[%clk
0:00:11.8]} 28. Qxg6 {[%clk 0:00:16.2]} 28... Qe1+ {[%clk 0:00:03.7]} 29. Rxe1
{[%clk 0:00:14.9]} 29... Rxe1# {[%clk 0:00:04.6]} 0-1

[Event "Early-Titled-Tuesday-Blitz-February-20-2024"]
[Site "Chess.com"]
[Date "2024.02.20"]
[Round "2"]
[White "adotand"]
[Black "Egor_Koshulyan"]
[Result "0-1"]
[WhiteElo "2947"]
[BlackElo "2632"]
[TimeControl "180+1"]
[EndTime "8:17:23 PST"]
[Termination "Egor_Koshulyan won by resignation"]

1. d4 {[%clk 0:03:00.9]} 1... Nf6 {[%clk 0:02:55.2]} 2. Nf3 {[%clk 0:03:01.3]}
2... d5 {[%clk 0:02:55.3]} 3. c3 {[%clk 0:03:01.4]} 3... Bf5 {[%clk 0:02:46.8]}
4. Qb3 {[%clk 0:03:01.5]} 4... Qc8 {[%clk 0:02:45.8]} 5. Bf4 {[%clk 0:03:01.8]}
5... e6 {[%clk 0:02:44.2]} 6. e3 {[%clk 0:03:01.6]} 6... Bd6 {[%clk 0:02:43.2]}
7. Nbd2 {[%clk 0:03:00.6]} 7... O-O {[%clk 0:02:42.6]} 8. Bg5 {[%clk 0:02:59.2]}
8... Nbd7 {[%clk 0:02:39.3]} 9. Be2 {[%clk 0:02:59.6]} 9... c5 {[%clk
0:02:31.9]} 10. O-O {[%clk 0:02:59.4]} 10... h6 {[%clk 0:02:28.6]} 11. Bh4
{[%clk 0:02:59.3]} 11... c4 {[%clk 0:02:25.8]} 12. Qd1 {[%clk 0:02:58.5]} 12...
b5 {[%clk 0:02:26]} 13. Bg3 {[%clk 0:02:47]} 13... Be7 {[%clk 0:02:22.4]} 14. b3
{[%clk 0:02:35.1]} 14... b4 {[%clk 0:02:07.3]} 15. Qc1 {[%clk 0:02:33.4]} 15...
cxb3 {[%clk 0:01:51.5]} 16. c4 {[%clk 0:02:30.3]} 16... dxc4 {[%clk 0:01:34.9]}
17. Nxc4 {[%clk 0:02:27.7]} 17... bxa2 {[%clk 0:01:35]} 18. Nfd2 {[%clk
0:02:16.3]} 18... Nd5 {[%clk 0:01:27.2]} 19. e4 {[%clk 0:01:55]} 19... Nc3
{[%clk 0:01:26.4]} 20. Bf3 {[%clk 0:01:55.6]} 20... Bh7 {[%clk 0:01:26.3]} 21.
Qb2 {[%clk 0:01:55]} 21... a5 {[%clk 0:01:19.8]} 22. Rfc1 {[%clk 0:01:47.1]}
22... Qa6 {[%clk 0:01:15.6]} 23. Bc7 {[%clk 0:01:24.6]} 23... Rac8 {[%clk
0:01:04.6]} 24. Bxa5 {[%clk 0:01:13.7]} 24... Rxc4 {[%clk 0:01:03.4]} 25. Nxc4
{[%clk 0:01:14.1]} 25... Qxc4 {[%clk 0:01:04.3]} 26. e5 {[%clk 0:01:07.4]} 26...
Bg5 {[%clk 0:00:46.9]} 27. Re1 {[%clk 0:00:37.5]} 27... Rb8 {[%clk 0:00:46.6]}
28. g3 {[%clk 0:00:29.3]} 28... Rb5 {[%clk 0:00:39.1]} 29. h4 {[%clk 0:00:27.3]}
29... Be7 {[%clk 0:00:39]} 30. Be2 {[%clk 0:00:18.6]} 30... Nxe2+ {[%clk
0:00:37.9]} 31. Rxe2 {[%clk 0:00:19.3]} 31... Rxa5 {[%clk 0:00:35.2]} 32. Ree1
{[%clk 0:00:18.4]} 32... b3 {[%clk 0:00:30.2]} 33. Rec1 {[%clk 0:00:18.4]} 33...
Bc2 {[%clk 0:00:30.6]} 0-1

[Event "Early-Titled-Tuesday-Blitz-February-20-2024"]
[Site "Chess.com"]
[Date "2024.02.20"]
[Round "2"]
[White "Yan_Dyomin2010"]
[Black "DmitriiZakurdaev"]
[Result "1-0"]
[WhiteElo "2733"]
[BlackElo "2458"]
[TimeControl "180+1"]
[EndTime "8:17:23 PST"]
[Termination "Yan_Dyomin2010 won on time"]

1. e4 {[%clk 0:03:00.9]} 1... c6 {[%clk 0:03:00.1]} 2. d4 {[%clk 0:02:59.1]}
2... d5 {[%clk 0:03:01]} 3. e5 {[%clk 0:02:57.5]} 3... Bf5 {[%clk 0:03:00.2]} 4.
Nf3 {[%clk 0:02:57.9]} 4... e6 {[%clk 0:03:00.1]} 5. Be2 {[%clk 0:02:57.5]} 5...
Nd7 {[%clk 0:03:00.1]} 6. O-O {[%clk 0:02:57.5]} 6... h6 {[%clk 0:02:59.8]} 7.
Nbd2 {[%clk 0:02:56.2]} 7... Ne7 {[%clk 0:03:00]} 8. Re1 {[%clk 0:02:56.7]} 8...
c5 {[%clk 0:02:57.3]} 9. c4 {[%clk 0:02:55.6]} 9... Qc7 {[%clk 0:02:33]} 10. Qa4
{[%clk 0:02:41.9]} 10... dxc4 {[%clk 0:02:20]} 11. Nxc4 {[%clk 0:02:36]} 11...
Nd5 {[%clk 0:02:16.2]} 12. Nd6+ {[%clk 0:02:20.1]} 12... Bxd6 {[%clk 0:02:05.6]}
13. exd6 {[%clk 0:02:21]} 13... Qxd6 {[%clk 0:02:00.3]} 14. Ne5 {[%clk
0:02:20.2]} 14... Nb6 {[%clk 0:01:39.5]} 15. dxc5 {[%clk 0:01:54]} 15... Qxc5
{[%clk 0:01:09.3]} 16. Nxd7 {[%clk 0:01:52.7]} 16... Nxa4 {[%clk 0:01:01.8]} 17.
Nxc5 {[%clk 0:01:53]} 17... Nxc5 {[%clk 0:01:02.7]} 18. Be3 {[%clk 0:01:52.9]}
18... Nd3 {[%clk 0:00:55]} 19. Red1 {[%clk 0:01:52.6]} 19... Ne5 {[%clk
0:00:23.7]} 20. Bb5+ {[%clk 0:01:50]} 20... Nc6 {[%clk 0:00:22.8]} 21. Bc5
{[%clk 0:01:49.9]} 21... a6 {[%clk 0:00:17.4]} 22. Be2 {[%clk 0:01:48.8]} 22...
Rd8 {[%clk 0:00:17.1]} 23. Bf3 {[%clk 0:01:45.2]} 23... Bc2 {[%clk 0:00:16.4]}
24. Rdc1 {[%clk 0:01:43.1]} 24... Bd3 {[%clk 0:00:13.7]} 25. b4 {[%clk
0:01:33.9]} 25... f6 {[%clk 0:00:12.9]} 26. Bb6 {[%clk 0:01:19.4]} 26... Rc8
{[%clk 0:00:06.4]} 27. a4 {[%clk 0:01:12.1]} 27... Kf7 {[%clk 0:00:05.5]} 28.
Bc5 {[%clk 0:01:04.2]} 28... a5 {[%clk 0:00:04.3]} 29. b5 {[%clk 0:01:02.1]}
29... Ne5 {[%clk 0:00:04.4]} 30. Bxb7 {[%clk 0:01:01.2]} 30... Rc7 {[%clk
0:00:03.7]} 31. Ba6 {[%clk 0:00:59.6]} 31... Rd7 {[%clk 0:00:02.2]} 32. Be3
{[%clk 0:00:59.1]} 32... Be4 {[%clk 0:00:02.3]} 33. b6 {[%clk 0:00:58.1]} 33...
Bd3 {[%clk 0:00:02.5]} 34. Bxd3 {[%clk 0:00:56.3]} 34... Nxd3 {[%clk 0:00:03.4]}
35. Rd1 {[%clk 0:00:55.4]} 35... Rhd8 {[%clk 0:00:03.3]} 36. Kf1 {[%clk
0:00:53.9]} 36... Nb4 {[%clk 0:00:03.7]} 37. Rxd7+ {[%clk 0:00:53.3]} 37... Rxd7
{[%clk 0:00:04.6]} 38. Rc1 {[%clk 0:00:52.7]} 38... Rd3 {[%clk 0:00:01.9]} 39.
b7 {[%clk 0:00:51.2]} 1-0

[Event "Early-Titled-Tuesday-Blitz-February-20-2024"]
[Site "Chess.com"]
[Date "2024.02.20"]
[Round "2"]
[White "Christ_is_alive"]
[Black "LiadCuba"]
[Result "1-0"]
[WhiteElo "2287"]
[BlackElo "2504"]
[TimeControl "180+1"]
[EndTime "8:17:23 PST"]
[Termination "Christ_is_alive won on time"]

1. e4 {[%clk 0:03:00.9]} 1... d5 {[%clk 0:02:55.2]} 2. exd5 {[%clk 0:03:00.2]}
2... Nf6 {[%clk 0:02:55.4]} 3. Bb5+ {[%clk 0:02:59.3]} 3... Nbd7 {[%clk
0:02:55.1]} 4. d4 {[%clk 0:02:56]} 4... a6 {[%clk 0:02:54.6]} 5. Be2 {[%clk
0:02:53.3]} 5... b5 {[%clk 0:02:53.7]} 6. Nf3 {[%clk 0:02:48.1]} 6... Nb6 {[%clk
0:02:52.1]} 7. O-O {[%clk 0:02:46.5]} 7... Bb7 {[%clk 0:02:48.6]} 8. Re1 {[%clk
0:02:41.9]} 8... Nbxd5 {[%clk 0:02:47.7]} 9. a4 {[%clk 0:02:39.9]} 9... b4
{[%clk 0:02:45.3]} 10. c4 {[%clk 0:02:38.8]} 10... bxc3 {[%clk 0:02:45.4]} 11.
bxc3 {[%clk 0:02:38.3]} 11... e6 {[%clk 0:02:42.8]} 12. c4 {[%clk 0:02:30.5]}
12... Nb4 {[%clk 0:02:41.9]} 13. a5 {[%clk 0:02:20.1]} 13... Rb8 {[%clk
0:02:26.5]} 14. Ne5 {[%clk 0:02:06.2]} 14... Be7 {[%clk 0:02:22.3]} 15. Qa4+
{[%clk 0:01:59.9]} 15... Kf8 {[%clk 0:01:54.6]} 16. Rd1 {[%clk 0:01:39]} 16...
Qe8 {[%clk 0:01:21.5]} 17. Nc3 {[%clk 0:01:36.4]} 17... Qxa4 {[%clk 0:01:07.3]}
18. Rxa4 {[%clk 0:01:25.5]} 18... Nc6 {[%clk 0:00:54.6]} 19. Bf4 {[%clk
0:01:24.3]} 19... Nxe5 {[%clk 0:00:34.2]} 20. Bxe5 {[%clk 0:01:25.2]} 20... Bd6
{[%clk 0:00:27.9]} 21. c5 {[%clk 0:01:23.7]} 21... Bxe5 {[%clk 0:00:26.9]} 22.
dxe5 {[%clk 0:01:24.6]} 22... Nd5 {[%clk 0:00:25.3]} 23. Nxd5 {[%clk 0:01:15.6]}
23... Bxd5 {[%clk 0:00:26.2]} 24. Bxa6 {[%clk 0:01:10.4]} 24... Ke7 {[%clk
0:00:23]} 25. Bc4 {[%clk 0:01:00.2]} 25... Bc6 {[%clk 0:00:17.5]} 26. Ra2 {[%clk
0:00:54.9]} 26... Rb4 {[%clk 0:00:17.4]} 27. Bf1 {[%clk 0:00:42.6]} 27... Ra8
{[%clk 0:00:16.8]} 28. g3 {[%clk 0:00:39.6]} 28... Bd5 {[%clk 0:00:12.7]} 29.
Ra3 {[%clk 0:00:37.8]} 29... g5 {[%clk 0:00:07.8]} 30. a6 {[%clk 0:00:34.6]}
30... g4 {[%clk 0:00:04.6]} 31. Rda1 {[%clk 0:00:20.6]} 31... Kd7 {[%clk
0:00:01.5]} 32. Ra4 {[%clk 0:00:19.6]} 1-0